[Event "January 9 Late 2024"]
[Site "https://www.chess.com"]
[Date "2024.01.09"]
[Round "2"]
[White "Rios Escobar, Adan"]
[Black "Grycel, Kamil"]
[Result "1/2-1/2"]
[Board "160"]
[TimeControl "180+1"]
[WhiteFideId "3403645"]
[BlackFideId "1115499"]
[WhiteElo "2355"]
[BlackElo "2549"]
[WhiteTeam "CHI"]
[BlackTeam "POL"]
[WhiteClock "0:00:03"]
[BlackClock "0:01:05"]

1. d4 {[%clk 0:02:56]}  d6 {[%clk 0:03:00]} 2. g3 {[%clk 0:02:53]}  e5 {[%clk 0:02:57]} 3. dxe5 {[%clk 0:02:50]}  dxe5 {[%clk 0:02:58]} 4. Qxd8+ {[%clk 0:02:50]}  Kxd8 {[%clk 0:02:59]} 5. Nc3 {[%clk 0:02:49]}  c6 {[%clk 0:02:59]} 6. f4 {[%clk 0:02:46]}  Nd7 {[%clk 0:02:58]} 7. Nf3 {[%clk 0:02:43]}  f6 {[%clk 0:02:50]} 8. Bd2 {[%clk 0:02:38]}  Kc7 {[%clk 0:02:47]} 9. O-O-O {[%clk 0:02:37]}  Ne7 {[%clk 0:02:40]} 10. fxe5 {[%clk 0:02:31]}  Nxe5 {[%clk 0:02:36]} 11. Nxe5 {[%clk 0:02:31]}  fxe5 {[%clk 0:02:37]} 12. Ne4 {[%clk 0:02:29]}  Bf5 {[%clk 0:02:25]} 13. Ng5 {[%clk 0:02:27]}  Ng6 {[%clk 0:02:11]} 14. Bc3 {[%clk 0:02:15]}  Re8 {[%clk 0:02:07]} 15. h4 {[%clk 0:01:24]}  h5 {[%clk 0:01:55]} 16. Bg2 {[%clk 0:01:08]}  Bc5 {[%clk 0:01:53]} 17. Kb1 {[%clk 0:01:06]}  Bg4 {[%clk 0:01:45]} 18. Bf3 {[%clk 0:01:04]}  Bxf3 {[%clk 0:01:25]} 19. exf3 {[%clk 0:01:04]}  Bf2 {[%clk 0:01:25]} 20. Ne4 {[%clk 0:01:02]}  Bb6 {[%clk 0:01:22]} 21. a4 {[%clk 0:01:01]}  a5 {[%clk 0:01:22]} 22. Rd3 {[%clk 0:00:58]}  Rd8 {[%clk 0:01:18]} 23. Rhd1 {[%clk 0:00:58]}  Rxd3 {[%clk 0:01:17]} 24. Rxd3 {[%clk 0:00:58]}  Rd8 {[%clk 0:01:15]} 25. Rxd8 {[%clk 0:00:45]}  Kxd8 {[%clk 0:01:15]} 26. Nd6 {[%clk 0:00:37]}  Bf2 {[%clk 0:01:11]} 27. Nf7+ {[%clk 0:00:20]}  Kc8 {[%clk 0:00:58]} 28. Nxe5 {[%clk 0:00:21]}  Ne7 {[%clk 0:00:57]} 29. g4 {[%clk 0:00:12]}  hxg4 {[%clk 0:00:55]} 30. fxg4 {[%clk 0:00:13]}  Bxh4 {[%clk 0:00:55]} 31. Bxa5 {[%clk 0:00:13]}  Nd5 {[%clk 0:00:54]} 32. Bd2 {[%clk 0:00:11]}  Bg3 {[%clk 0:00:52]} 33. Nc4 {[%clk 0:00:10]}  Kd7 {[%clk 0:00:52]} 34. a5 {[%clk 0:00:10]}  Ke6 {[%clk 0:00:51]} 35. b4 {[%clk 0:00:08]}  Nf6 {[%clk 0:00:48]} 36. g5 {[%clk 0:00:07]}  Ne4 {[%clk 0:00:48]} 37. Kb2 {[%clk 0:00:07]}  Bh4 {[%clk 0:00:45]} 38. g6 {[%clk 0:00:03]}  Bf6+ {[%clk 0:00:45]} 39. Kb3 {[%clk 0:00:03]}  Kf5 {[%clk 0:00:46]} 40. Be3 {[%clk 0:00:03]}  Kxg6 {[%clk 0:00:46]} 41. Na3 {[%clk 0:00:02]}  Kf7 {[%clk 0:00:44]} 42. c4 {[%clk 0:00:02]}  g5 {[%clk 0:00:44]} 43. b5 {[%clk 0:00:02]}  cxb5 {[%clk 0:00:41]} 44. cxb5 {[%clk 0:00:03]}  g4 {[%clk 0:00:41]} 45. a6 {[%clk 0:00:03]}  bxa6 {[%clk 0:00:41]} 46. bxa6 {[%clk 0:00:04]}  Nd2+ {[%clk 0:00:30]} 47. Bxd2 {[%clk 0:00:05]}  Bd4 {[%clk 0:00:30]} 48. Nb5 {[%clk 0:00:05]}  Bg1 {[%clk 0:00:30]} 49. Bf4 {[%clk 0:00:04]}  Ke6 {[%clk 0:00:30]} 50. a7 {[%clk 0:00:04]}  Bxa7 {[%clk 0:00:29]} 51. Nxa7 {[%clk 0:00:05]}  Kf5 {[%clk 0:00:30]} 52. Bg3 {[%clk 0:00:05]}  Ke4 {[%clk 0:00:31]} 53. Nc6 {[%clk 0:00:05]}  Kf3 {[%clk 0:00:32]} 54. Bd6 {[%clk 0:00:05]}  g3 {[%clk 0:00:32]} 55. Ne5+ {[%clk 0:00:06]}  Kf2 {[%clk 0:00:31]} 56. Bc5+ {[%clk 0:00:06]}  Kf1 {[%clk 0:00:31]} 57. Nf3 {[%clk 0:00:04]}  g2 {[%clk 0:00:31]} 58. Ng1 {[%clk 0:00:05]}  Ke1 {[%clk 0:00:30]} 59. Kc4 {[%clk 0:00:06]}  Kf1 {[%clk 0:00:30]} 60. Bd4 {[%clk 0:00:07]}  Ke1 {[%clk 0:00:31]} 61. Kd5 {[%clk 0:00:08]}  Kf1 {[%clk 0:00:32]} 62. Ke4 {[%clk 0:00:08]}  Ke1 {[%clk 0:00:33]} 63. Be3 {[%clk 0:00:09]}  Kf1 {[%clk 0:00:33]} 64. Kf3 {[%clk 0:00:10]}  Ke1 {[%clk 0:00:33]} 65. Kxg2 {[%clk 0:00:10]}  Kd1 {[%clk 0:00:34]} 66. Kf3 {[%clk 0:00:11]}  Kc2 {[%clk 0:00:35]} 67. Ke4 {[%clk 0:00:11]}  Kb3 {[%clk 0:00:36]} 68. Kd4 {[%clk 0:00:11]}  Kc2 {[%clk 0:00:36]} 69. Nf3 {[%clk 0:00:11]}  Kd1 {[%clk 0:00:37]} 70. Ne5 {[%clk 0:00:10]}  Ke2 {[%clk 0:00:38]} 71. Ke4 {[%clk 0:00:10]}  Kd1 {[%clk 0:00:38]} 72. Bd4 {[%clk 0:00:09]}  Kc1 {[%clk 0:00:39]} 73. Kd3 {[%clk 0:00:09]}  Kd1 {[%clk 0:00:39]} 74. Bc3 {[%clk 0:00:10]}  Kc1 {[%clk 0:00:39]} 75. Bd4 {[%clk 0:00:08]}  Kb1 {[%clk 0:00:40]} 76. Kc3 {[%clk 0:00:08]}  Ka2 {[%clk 0:00:41]} 77. Be3 {[%clk 0:00:09]}  Ka3 {[%clk 0:00:42]} 78. Nc4+ {[%clk 0:00:09]}  Ka4 {[%clk 0:00:43]} 79. Nd6 {[%clk 0:00:09]}  Ka5 {[%clk 0:00:44]} 80. Kc4 {[%clk 0:00:09]}  Ka6 {[%clk 0:00:45]} 81. Kc5 {[%clk 0:00:09]}  Ka5 {[%clk 0:00:45]} 82. Nc4+ {[%clk 0:00:09]}  Ka4 {[%clk 0:00:46]} 83. Bd4 {[%clk 0:00:08]}  Kb3 {[%clk 0:00:47]} 84. Ne5 {[%clk 0:00:08]}  Kc2 {[%clk 0:00:47]} 85. Kc4 {[%clk 0:00:08]}  Kd1 {[%clk 0:00:48]} 86. Kd3 {[%clk 0:00:08]}  Ke1 {[%clk 0:00:49]} 87. Ke3 {[%clk 0:00:07]}  Kf1 {[%clk 0:00:50]} 88. Ng4 {[%clk 0:00:07]}  Kg2 {[%clk 0:00:51]} 89. Nf2 {[%clk 0:00:07]}  Kg3 {[%clk 0:00:51]} 90. Be5+ {[%clk 0:00:07]}  Kh4 {[%clk 0:00:51]} 91. Kf3 {[%clk 0:00:06]}  Kh5 {[%clk 0:00:52]} 92. Ne4 {[%clk 0:00:06]}  Kg6 {[%clk 0:00:53]} 93. Kf4 {[%clk 0:00:06]}  Kf7 {[%clk 0:00:54]} 94. Kf5 {[%clk 0:00:06]}  Ke8 {[%clk 0:00:55]} 95. Ke6 {[%clk 0:00:07]}  Kd8 {[%clk 0:00:56]} 96. Nc5 {[%clk 0:00:07]}  Kc8 {[%clk 0:00:57]} 97. Kd6 {[%clk 0:00:06]}  Kb8 {[%clk 0:00:57]} 98. Kc6+ {[%clk 0:00:06]}  Kc8 {[%clk 0:00:57]} 99. Bf6 {[%clk 0:00:05]}  Kb8 {[%clk 0:00:57]} 100. Nd7+ {[%clk 0:00:04]}  Ka7 {[%clk 0:00:58]} 101. Nb6 {[%clk 0:00:04]}  Ka6 {[%clk 0:00:59]} 102. Bd8 {[%clk 0:00:04]}  Ka5 {[%clk 0:01:00]} 103. Bc7 {[%clk 0:00:04]}  Ka6 {[%clk 0:00:59]} 104. Bb8 {[%clk 0:00:04]}  Ka5 {[%clk 0:01:00]} 105. Nd5 {[%clk 0:00:04]}  Ka4 {[%clk 0:01:00]} 106. Kc5 {[%clk 0:00:05]}  Kb3 {[%clk 0:01:01]} 107. Bc7 {[%clk 0:00:01]}  Kc2 {[%clk 0:01:02]} 108. Bf4 {[%clk 0:00:02]}  Kd1 {[%clk 0:01:03]} 109. Ne3+ {[%clk 0:00:02]}  Ke2 {[%clk 0:01:04]} 110. Kd4 {[%clk 0:00:03]}  Kf3 {[%clk 0:01:05]} 111. Ke5 {[%clk 0:00:03]}  Ke2 {[%clk 0:01:04]} 112. Ke4 {[%clk 0:00:03]}  Ke1 {[%clk 0:01:03]} 113. Nd5 {[%clk 0:00:03]}  Kf2 {[%clk 0:01:04]} 114. Be3+ {[%clk 0:00:03]}  Kg3 {[%clk 0:01:05]} 115. Nc3 {[%clk 0:00:03]} 1/2-1/2

[Event "January 9 Late 2024"]
[Site "https://www.chess.com"]
[Date "2024.01.09"]
[Round "2"]
[White "Gao, Raymond"]
[Black "Aggelis, Nikolaos"]
[Result "1-0"]
[Board "161"]
[TimeControl "180+1"]
[WhiteFideId "2629429"]
[BlackFideId "4213220"]
[WhiteElo "2355"]
[BlackElo "2547"]
[WhiteTeam "CAN"]
[BlackTeam "GRE"]
[WhiteClock "0:00:11"]
[BlackClock "0:00:00"]

1. e4 {[%clk 0:03:00]}  c6 {[%clk 0:02:56]} 2. Nf3 {[%clk 0:02:59]}  d5 {[%clk 0:02:55]} 3. Nc3 {[%clk 0:03:00]}  Bg4 {[%clk 0:02:51]} 4. h3 {[%clk 0:03:00]}  Bxf3 {[%clk 0:02:51]} 5. Qxf3 {[%clk 0:03:00]}  e6 {[%clk 0:02:50]} 6. g3 {[%clk 0:03:00]}  Nd7 {[%clk 0:02:48]} 7. Bg2 {[%clk 0:03:00]}  Bc5 {[%clk 0:02:35]} 8. O-O {[%clk 0:02:59]}  Ne7 {[%clk 0:02:33]} 9. Qd1 {[%clk 0:02:49]}  Qc7 {[%clk 0:02:25]} 10. d4 {[%clk 0:02:48]}  Bb4 {[%clk 0:02:21]} 11. Ne2 {[%clk 0:02:47]}  dxe4 {[%clk 0:02:17]} 12. Bxe4 {[%clk 0:02:42]}  O-O {[%clk 0:02:10]} 13. c3 {[%clk 0:02:42]}  Bd6 {[%clk 0:02:07]} 14. Bc2 {[%clk 0:02:41]}  e5 {[%clk 0:01:58]} 15. Qd3 {[%clk 0:02:38]}  f5 {[%clk 0:01:42]} 16. Be3 {[%clk 0:02:07]}  e4 {[%clk 0:01:31]} 17. Qd2 {[%clk 0:02:07]}  Nd5 {[%clk 0:01:26]} 18. Bb3 {[%clk 0:02:07]}  Kh8 {[%clk 0:01:25]} 19. Bxd5 {[%clk 0:02:04]}  cxd5 {[%clk 0:01:26]} 20. Nf4 {[%clk 0:02:04]}  Bxf4 {[%clk 0:01:17]} 21. Bxf4 {[%clk 0:02:03]}  Qc6 {[%clk 0:01:17]} 22. a3 {[%clk 0:01:53]}  b5 {[%clk 0:00:44]} 23. Kg2 {[%clk 0:01:50]}  Nb6 {[%clk 0:00:43]} 24. h4 {[%clk 0:01:48]}  Nc4 {[%clk 0:00:43]} 25. Qe2 {[%clk 0:01:48]}  a5 {[%clk 0:00:41]} 26. h5 {[%clk 0:01:48]}  Rae8 {[%clk 0:00:32]} 27. h6 {[%clk 0:01:47]}  g6 {[%clk 0:00:30]} 28. b3 {[%clk 0:01:43]}  Nb6 {[%clk 0:00:25]} 29. Rfc1 {[%clk 0:01:33]}  a4 {[%clk 0:00:23]} 30. Rab1 {[%clk 0:01:19]}  axb3 {[%clk 0:00:20]} 31. Rxb3 {[%clk 0:01:18]}  Nc4 {[%clk 0:00:21]} 32. Rcb1 {[%clk 0:01:13]}  Kg8 {[%clk 0:00:15]} 33. Rxb5 {[%clk 0:01:12]}  Nxa3 {[%clk 0:00:15]} 34. Rb6 {[%clk 0:00:55]}  Qxc3 {[%clk 0:00:13]} 35. R1b3 {[%clk 0:00:48]}  Qc4 {[%clk 0:00:14]} 36. Qb2 {[%clk 0:00:29]}  Nc2 {[%clk 0:00:13]} 37. Rc3 {[%clk 0:00:23]}  Ne1+ {[%clk 0:00:12]} 38. Kg1 {[%clk 0:00:19]}  Nf3+ {[%clk 0:00:09]} 39. Kg2 {[%clk 0:00:18]}  Qxd4 {[%clk 0:00:00]} 40. Rb7 {[%clk 0:00:11]} 1-0

[Event "January 9 Late 2024"]
[Site "https://www.chess.com"]
[Date "2024.01.09"]
[Round "2"]
[White "Rosenberg, Evan S"]
[Black "Yurasov, Matfey"]
[Result "0-1"]
[Board "162"]
[TimeControl "180+1"]
[WhiteFideId "2019299"]
[BlackFideId "55617603"]
[WhiteElo "2353"]
[BlackElo "2547"]
[WhiteTeam "USA"]
[BlackTeam "FID"]
[WhiteClock "0:00:00"]
[BlackClock "0:01:10"]

1. e4 {[%clk 0:03:00]}  e5 {[%clk 0:02:55]} 2. Nf3 {[%clk 0:02:59]}  Nf6 {[%clk 0:02:55]} 3. Nc3 {[%clk 0:02:58]}  Bb4 {[%clk 0:02:53]} 4. Bc4 {[%clk 0:02:51]}  O-O {[%clk 0:02:51]} 5. O-O {[%clk 0:02:49]}  Nxe4 {[%clk 0:02:47]} 6. Nxe4 {[%clk 0:02:46]}  d5 {[%clk 0:02:48]} 7. Nxe5 {[%clk 0:02:43]}  dxe4 {[%clk 0:02:39]} 8. Qh5 {[%clk 0:02:13]}  Qf6 {[%clk 0:02:36]} 9. d4 {[%clk 0:01:40]}  exd3 {[%clk 0:02:31]} 10. cxd3 {[%clk 0:01:40]}  Bd6 {[%clk 0:02:18]} 11. d4 {[%clk 0:01:40]}  h6 {[%clk 0:02:04]} 12. Bd2 {[%clk 0:01:18]}  Be6 {[%clk 0:01:56]} 13. Bd3 {[%clk 0:01:11]}  Nc6 {[%clk 0:01:48]} 14. Nxc6 {[%clk 0:01:05]}  bxc6 {[%clk 0:01:47]} 15. Bc3 {[%clk 0:01:04]}  Qf4 {[%clk 0:01:41]} 16. g3 {[%clk 0:01:04]}  Bg4 {[%clk 0:01:37]} 17. Qh4 {[%clk 0:00:48]}  Qf3 {[%clk 0:01:35]} 18. Rae1 {[%clk 0:00:41]}  Rfe8 {[%clk 0:01:34]} 19. h3 {[%clk 0:00:24]}  Bxh3 {[%clk 0:01:25]} 20. Qxh3 {[%clk 0:00:16]}  Qxd3 {[%clk 0:01:24]} 21. Qd7 {[%clk 0:00:15]}  Rxe1 {[%clk 0:01:24]} 22. Rxe1 {[%clk 0:00:15]}  Qf3 {[%clk 0:01:23]} 23. Re3 {[%clk 0:00:13]}  Qd5 {[%clk 0:01:22]} 24. b3 {[%clk 0:00:08]}  a5 {[%clk 0:01:22]} 25. Re8+ {[%clk 0:00:06]}  Rxe8 {[%clk 0:01:21]} 26. Qxe8+ {[%clk 0:00:06]}  Kh7 {[%clk 0:01:22]} 27. Qa8 {[%clk 0:00:07]}  h5 {[%clk 0:01:11]} 28. Qxa5 {[%clk 0:00:07]}  Qf3 {[%clk 0:01:12]} 29. Qg5 {[%clk 0:00:05]}  f6 {[%clk 0:01:10]} 30. Qd2 {[%clk 0:00:03]}  h4 {[%clk 0:01:10]} 31. gxh4 {[%clk 0:00:00]}  Qh3 {[%clk 0:01:10]} 0-1

[Event "January 9 Late 2024"]
[Site "https://www.chess.com"]
[Date "2024.01.09"]
[Round "2"]
[White "Aliakbarov, Anar"]
[Black "Filipovic, Slobodan J"]
[Result "1-0"]
[Board "164"]
[TimeControl "180+1"]
[WhiteFideId "13401858"]
[BlackFideId "939633"]
[WhiteElo "2546"]
[BlackElo "2351"]
[WhiteTeam "TUR"]
[BlackTeam "SRB"]
[WhiteClock "0:00:10"]
[BlackClock "0:00:17"]

1. d4 {[%clk 0:02:57]}  Nf6 {[%clk 0:02:59]} 2. c4 {[%clk 0:02:56]}  e6 {[%clk 0:02:59]} 3. Nf3 {[%clk 0:02:53]}  c5 {[%clk 0:02:58]} 4. d5 {[%clk 0:02:53]}  d6 {[%clk 0:02:58]} 5. g3 {[%clk 0:02:51]}  exd5 {[%clk 0:02:55]} 6. cxd5 {[%clk 0:02:52]}  g6 {[%clk 0:02:56]} 7. Bg2 {[%clk 0:02:51]}  Bg7 {[%clk 0:02:57]} 8. Nc3 {[%clk 0:02:47]}  O-O {[%clk 0:02:57]} 9. O-O {[%clk 0:02:46]}  Re8 {[%clk 0:02:57]} 10. Nd2 {[%clk 0:02:46]}  h6 {[%clk 0:02:53]} 11. h3 {[%clk 0:02:43]}  g5 {[%clk 0:02:53]} 12. Nc4 {[%clk 0:02:39]}  a6 {[%clk 0:02:50]} 13. a4 {[%clk 0:02:38]}  Bf5 {[%clk 0:02:48]} 14. Qb3 {[%clk 0:01:45]}  Qc7 {[%clk 0:02:46]} 15. Re1 {[%clk 0:01:37]}  Nbd7 {[%clk 0:02:46]} 16. e4 {[%clk 0:01:35]}  Bg6 {[%clk 0:02:43]} 17. f4 {[%clk 0:01:26]}  Nxe4 {[%clk 0:02:19]} 18. Nxe4 {[%clk 0:01:11]}  f5 {[%clk 0:02:14]} 19. Ncxd6 {[%clk 0:01:08]}  fxe4 {[%clk 0:02:05]} 20. Nxe8 {[%clk 0:01:07]}  Rxe8 {[%clk 0:02:05]} 21. fxg5 {[%clk 0:01:04]}  Bd4+ {[%clk 0:01:56]} 22. Kh2 {[%clk 0:00:48]}  Qd6 {[%clk 0:01:53]} 23. Bf4 {[%clk 0:00:46]}  Ne5 {[%clk 0:01:24]} 24. Bxe4 {[%clk 0:00:42]}  c4 {[%clk 0:01:13]} 25. Qc2 {[%clk 0:00:35]}  Nf3+ {[%clk 0:01:10]} 26. Bxf3 {[%clk 0:00:32]}  Rxe1 {[%clk 0:01:04]} 27. Rxe1 {[%clk 0:00:29]}  Bxc2 {[%clk 0:00:59]} 28. Bxd6 {[%clk 0:00:28]}  Bxb2 {[%clk 0:00:58]} 29. Be5 {[%clk 0:00:22]}  c3 {[%clk 0:00:56]} 30. d6 {[%clk 0:00:23]}  Bxa4 {[%clk 0:00:55]} 31. Bd5+ {[%clk 0:00:21]}  Kh7 {[%clk 0:00:55]} 32. Re3 {[%clk 0:00:14]}  hxg5 {[%clk 0:00:49]} 33. Bxc3 {[%clk 0:00:14]}  Bc1 {[%clk 0:00:50]} 34. Re7+ {[%clk 0:00:14]}  Kg6 {[%clk 0:00:50]} 35. d7 {[%clk 0:00:15]}  Bxd7 {[%clk 0:00:46]} 36. Rxd7 {[%clk 0:00:16]}  Kf5 {[%clk 0:00:46]} 37. Rxb7 {[%clk 0:00:16]}  Be3 {[%clk 0:00:44]} 38. Rf7+ {[%clk 0:00:13]}  Kg6 {[%clk 0:00:43]} 39. Rf6+ {[%clk 0:00:12]}  Kh5 {[%clk 0:00:43]} 40. g4+ {[%clk 0:00:10]}  Kh4 {[%clk 0:00:17]} 41. Rh6# {[%clk 0:00:10]} 1-0

[Event "January 9 Late 2024"]
[Site "https://www.chess.com"]
[Date "2024.01.09"]
[Round "2"]
[White "Smiech, Sara"]
[Black "Doluhanova, Evgeniya"]
[Result "0-1"]
[Board "168"]
[TimeControl "180+1"]
[WhiteFideId "91102863"]
[BlackFideId "14112035"]
[WhiteElo "2545"]
[BlackElo "2340"]
[WhiteTeam "POL"]
[BlackTeam "UKR"]
[WhiteClock "0:00:17"]
[BlackClock "0:00:56"]

1. e4 {[%clk 0:02:59]}  c5 {[%clk 0:02:58]} 2. Nf3 {[%clk 0:02:59]}  d6 {[%clk 0:02:58]} 3. d4 {[%clk 0:02:59]}  cxd4 {[%clk 0:02:58]} 4. Nxd4 {[%clk 0:03:00]}  Nf6 {[%clk 0:02:59]} 5. Nc3 {[%clk 0:03:01]}  a6 {[%clk 0:02:59]} 6. Be3 {[%clk 0:03:01]}  e5 {[%clk 0:02:59]} 7. Nb3 {[%clk 0:03:01]}  Be7 {[%clk 0:03:00]} 8. Qd2 {[%clk 0:03:02]}  O-O {[%clk 0:02:59]} 9. O-O-O {[%clk 0:03:02]}  Bd7 {[%clk 0:02:59]} 10. f4 {[%clk 0:03:03]}  b5 {[%clk 0:02:58]} 11. f5 {[%clk 0:02:59]}  b4 {[%clk 0:02:58]} 12. Nd5 {[%clk 0:02:59]}  Nxd5 {[%clk 0:02:47]} 13. Qxd5 {[%clk 0:02:59]}  Bc6 {[%clk 0:02:47]} 14. Qd3 {[%clk 0:02:58]}  a5 {[%clk 0:02:47]} 15. Nd2 {[%clk 0:02:56]}  Nd7 {[%clk 0:02:41]} 16. Nc4 {[%clk 0:02:55]}  Nc5 {[%clk 0:02:35]} 17. Bxc5 {[%clk 0:02:53]}  dxc5 {[%clk 0:02:35]} 18. Nxe5 {[%clk 0:02:53]}  Bb7 {[%clk 0:02:23]} 19. Be2 {[%clk 0:02:25]}  Qc7 {[%clk 0:02:18]} 20. Ng4 {[%clk 0:02:00]}  Bg5+ {[%clk 0:02:12]} 21. Kb1 {[%clk 0:01:59]}  h5 {[%clk 0:02:04]} 22. h4 {[%clk 0:01:47]}  Rfd8 {[%clk 0:01:52]} 23. Qc4 {[%clk 0:01:44]}  Ba6 {[%clk 0:01:43]} 24. Qxa6 {[%clk 0:01:29]}  Rxa6 {[%clk 0:01:41]} 25. Bxa6 {[%clk 0:01:29]}  Rxd1+ {[%clk 0:01:38]} 26. Rxd1 {[%clk 0:01:29]}  Bxh4 {[%clk 0:01:26]} 27. Ne3 {[%clk 0:01:27]}  Bf6 {[%clk 0:01:17]} 28. Nd5 {[%clk 0:01:17]}  Qe5 {[%clk 0:01:16]} 29. Nxf6+ {[%clk 0:01:17]}  Qxf6 {[%clk 0:01:16]} 30. Bc4 {[%clk 0:01:07]}  Qh4 {[%clk 0:01:14]} 31. Bd5 {[%clk 0:00:59]}  Qg4 {[%clk 0:01:11]} 32. Rd2 {[%clk 0:00:54]}  Qf4 {[%clk 0:01:10]} 33. Rd1 {[%clk 0:00:54]}  Qf2 {[%clk 0:01:07]} 34. b3 {[%clk 0:00:53]}  Qxg2 {[%clk 0:01:07]} 35. e5 {[%clk 0:00:53]}  Qe2 {[%clk 0:01:05]} 36. Bxf7+ {[%clk 0:00:23]}  Kxf7 {[%clk 0:01:03]} 37. Rd7+ {[%clk 0:00:24]}  Kf8 {[%clk 0:00:58]} 38. Rd8+ {[%clk 0:00:18]}  Ke7 {[%clk 0:00:57]} 39. Rg8 {[%clk 0:00:17]}  Qxe5 {[%clk 0:00:56]} 0-1

[Event "January 9 Late 2024"]
[Site "https://www.chess.com"]
[Date "2024.01.09"]
[Round "2"]
[White "Ferreira, Vitor Hugo Vieira"]
[Black "Joel Paul Ganta"]
[Result "1-0"]
[Board "169"]
[TimeControl "180+1"]
[WhiteFideId "2119765"]
[BlackFideId "35066145"]
[WhiteElo "2544"]
[BlackElo "2340"]
[WhiteTeam "BRA"]
[BlackTeam "IND"]
[WhiteClock "0:00:06"]
[BlackClock "0:00:00"]

1. d4 {[%clk 0:03:00]}  Nf6 {[%clk 0:02:54]} 2. c4 {[%clk 0:02:59]}  e6 {[%clk 0:02:54]} 3. Nf3 {[%clk 0:02:59]}  d5 {[%clk 0:02:53]} 4. Nc3 {[%clk 0:02:59]}  Bb4 {[%clk 0:02:52]} 5. cxd5 {[%clk 0:02:58]}  exd5 {[%clk 0:02:52]} 6. Bg5 {[%clk 0:02:58]}  c6 {[%clk 0:02:50]} 7. Qc2 {[%clk 0:02:55]}  Nbd7 {[%clk 0:02:46]} 8. e3 {[%clk 0:02:54]}  O-O {[%clk 0:02:36]} 9. Bd3 {[%clk 0:02:53]}  h6 {[%clk 0:02:36]} 10. Bh4 {[%clk 0:02:53]}  Re8 {[%clk 0:02:28]} 11. O-O {[%clk 0:02:53]}  Bf8 {[%clk 0:02:24]} 12. Rab1 {[%clk 0:02:52]}  g5 {[%clk 0:02:17]} 13. Bg3 {[%clk 0:02:50]}  Bg7 {[%clk 0:02:17]} 14. Ne5 {[%clk 0:02:49]}  Nxe5 {[%clk 0:02:16]} 15. Bxe5 {[%clk 0:02:46]}  Nh5 {[%clk 0:02:12]} 16. Bxg7 {[%clk 0:02:31]}  Kxg7 {[%clk 0:02:07]} 17. b4 {[%clk 0:02:30]}  Be6 {[%clk 0:01:48]} 18. b5 {[%clk 0:02:08]}  cxb5 {[%clk 0:01:32]} 19. Rxb5 {[%clk 0:01:56]}  b6 {[%clk 0:01:30]} 20. Qb3 {[%clk 0:01:22]}  Nf6 {[%clk 0:01:26]} 21. f4 {[%clk 0:01:13]}  gxf4 {[%clk 0:01:14]} 22. Rxf4 {[%clk 0:01:08]}  Qd7 {[%clk 0:01:03]} 23. Ne2 {[%clk 0:01:01]}  Rac8 {[%clk 0:01:00]} 24. Ng3 {[%clk 0:00:52]}  Rc1+ {[%clk 0:00:54]} 25. Nf1 {[%clk 0:00:39]}  Rec8 {[%clk 0:00:45]} 26. Qa3 {[%clk 0:00:33]}  Rd1 {[%clk 0:00:30]} 27. Rb3 {[%clk 0:00:29]}  Rcc1 {[%clk 0:00:25]} 28. Rc3 {[%clk 0:00:26]}  Ra1 {[%clk 0:00:19]} 29. Qb2 {[%clk 0:00:25]}  Qe7 {[%clk 0:00:11]} 30. Qf2 {[%clk 0:00:19]}  Ne4 {[%clk 0:00:09]} 31. Bxe4 {[%clk 0:00:14]}  dxe4 {[%clk 0:00:10]} 32. Qg3+ {[%clk 0:00:14]}  Kf8 {[%clk 0:00:09]} 33. Rf2 {[%clk 0:00:12]}  Qg5 {[%clk 0:00:07]} 34. Qd6+ {[%clk 0:00:10]}  Kg7 {[%clk 0:00:07]} 35. h4 {[%clk 0:00:07]}  Qxh4 {[%clk 0:00:07]} 36. Rc7 {[%clk 0:00:05]}  Rxf1+ {[%clk 0:00:04]} 37. Rxf1 {[%clk 0:00:05]}  Rxf1+ {[%clk 0:00:04]} 38. Kxf1 {[%clk 0:00:06]}  Qf6+ {[%clk 0:00:04]} 39. Kg1 {[%clk 0:00:06]}  Kg6 {[%clk 0:00:02]} 40. Qg3+ {[%clk 0:00:05]}  Qg5 {[%clk 0:00:02]} 41. Qxg5+ {[%clk 0:00:05]}  Kxg5 {[%clk 0:00:03]} 42. Rxa7 {[%clk 0:00:05]}  Kg4 {[%clk 0:00:00]} 43. Kf2 {[%clk 0:00:06]} 1-0

[Event "January 9 Late 2024"]
[Site "https://www.chess.com"]
[Date "2024.01.09"]
[Round "2"]
[White "Laskakis, Konstantinos"]
[Black "Przybylski, Wojciech"]
[Result "0-1"]
[Board "170"]
[TimeControl "180+1"]
[WhiteFideId "42134374"]
[BlackFideId "1117599"]
[WhiteElo "2340"]
[BlackElo "2543"]
[WhiteTeam "GRE"]
[BlackTeam "POL"]
[WhiteClock "0:00:04"]
[BlackClock "0:00:09"]

1. d4 {[%clk 0:03:00]}  Nf6 {[%clk 0:02:59]} 2. c4 {[%clk 0:03:01]}  e6 {[%clk 0:03:00]} 3. Nc3 {[%clk 0:03:00]}  d5 {[%clk 0:03:01]} 4. Bg5 {[%clk 0:02:58]}  Be7 {[%clk 0:03:01]} 5. Nf3 {[%clk 0:02:56]}  O-O {[%clk 0:03:01]} 6. e3 {[%clk 0:02:54]}  Nbd7 {[%clk 0:03:01]} 7. Qc2 {[%clk 0:02:52]}  c5 {[%clk 0:02:57]} 8. dxc5 {[%clk 0:02:49]}  Nxc5 {[%clk 0:02:56]} 9. cxd5 {[%clk 0:02:45]}  exd5 {[%clk 0:02:54]} 10. Bd3 {[%clk 0:02:37]}  Nxd3+ {[%clk 0:02:49]} 11. Qxd3 {[%clk 0:02:37]}  Be6 {[%clk 0:02:49]} 12. O-O {[%clk 0:02:35]}  h6 {[%clk 0:02:47]} 13. Bh4 {[%clk 0:02:32]}  Qb6 {[%clk 0:02:44]} 14. Rab1 {[%clk 0:02:19]}  Rfd8 {[%clk 0:02:44]} 15. Nd4 {[%clk 0:02:19]}  Rac8 {[%clk 0:02:35]} 16. Rfd1 {[%clk 0:02:08]}  a6 {[%clk 0:02:34]} 17. Rd2 {[%clk 0:01:49]}  Rc4 {[%clk 0:02:31]} 18. Rbd1 {[%clk 0:01:42]}  Rdc8 {[%clk 0:02:25]} 19. Qb1 {[%clk 0:01:30]}  g5 {[%clk 0:02:03]} 20. Bg3 {[%clk 0:01:27]}  Bb4 {[%clk 0:02:04]} 21. Nf5 {[%clk 0:01:09]}  Bf8 {[%clk 0:01:45]} 22. Be5 {[%clk 0:01:03]}  Ne4 {[%clk 0:01:40]} 23. Nxd5 {[%clk 0:00:41]}  Bxd5 {[%clk 0:01:18]} 24. Rxd5 {[%clk 0:00:39]}  Qg6 {[%clk 0:01:03]} 25. Bd4 {[%clk 0:00:25]}  Nd6 {[%clk 0:00:24]} 26. Nxd6 {[%clk 0:00:20]}  Qxb1 {[%clk 0:00:22]} 27. Bc3 {[%clk 0:00:07]}  Qc2 {[%clk 0:00:10]} 28. Nxc4 {[%clk 0:00:06]}  Rxc4 {[%clk 0:00:10]} 29. Rd8 {[%clk 0:00:07]}  Kh7 {[%clk 0:00:10]} 30. Rxf8 {[%clk 0:00:06]}  Qxd1+ {[%clk 0:00:09]} 31. Be1 {[%clk 0:00:04]}  Qxe1# {[%clk 0:00:09]} 0-1